bitfinex-derivatives/quotes_SOLF0:USTF0_20241227
["timestamp","ask_amount","ask_price","bid_price","bid_amount"]
[1735319892031,2.7213,184.02,183.99,14.40217647]
[1735319892232,12.82507647,184.09,184.0,3.5]
[1735319892544,3.2864,184.13,184.02,12.82507647]
[1735319892837,1.5985,184.13,184.02,12.82507647]
[1735319894134,2.7209,184.05,184.02,12.82507647]
[1735319894337,2.7209,184.05,184.0,5.1989]
[1735319894737,2.7209,184.05,184.0,7.9204]
[1735319894934,2.7209,184.05,184.0,1.6989]
[1735319895136,2.7209,184.05,184.01,3.5]
[1735319895735,2.721,184.04,184.01,3.5]
[1735319896538,1.5985,184.13,184.01,3.5]
[1735319897535,2.7207,184.06,184.01,6.2213]
[1735319899842,1.5985,184.13,184.01,6.2213]
[1735319899843,1.5985,184.13,184.01,3.5]
[1735319900135,2.7207,184.06,184.01,6.2214]
[1735319900439,1.5985,184.13,184.01,3.5]
[1735319901540,2.721,184.04,184.01,3.5]
[1735319902241,1.5985,184.13,184.01,3.5]
[1735319902446,1.5985,184.13,184.02,3.5]
[1735319902742,2.7211,184.03,184.02,3.5]
[1735319903241,2.7202,184.09,184.02,3.5]
[1735319903442,1.672,184.12,184.02,3.5]
[1735319904038,1.672,184.12,183.99,1.5771]
[1735319904242,1.672,184.12,184.0,3.5]
[1735319905134,1.672,184.12,183.91,1.5455]
[1735319905334,1.672,184.12,183.92,5.2021]
[1735319905535,2.7207,184.06,183.92,5.2021]
[1735319905746,3.5,184.11,183.92,5.2021]
[1735319906746,3.5,184.11,183.92,7.9248]
[1735319907040,3.5,184.11,183.92,5.2021]
[1735319907544,1.672,184.12,183.92,5.2021]
[1735319907738,2.722,183.97,183.92,7.9248]
[1735319908639,1.672,184.12,183.94,2.7224]
[1735319909145,1.672,184.12,183.92,5.2021]
[1735319909345,0.8865649,184.11,183.92,5.2021]
[1735319909544,1.672,184.12,183.92,5.2021]
[1735319909741,2.7218,183.99,183.92,5.2021]
[1735319909942,2.7218,183.99,183.93,2.7225]
[1735319910240,2.722,183.98,183.93,2.7225]
[1735319911046,2.722,183.97,183.93,2.7225]
[1735319912842,1.672,184.12,183.94,2.7223]
[1735319914342,5.4401,184.11,183.92,5.2021]
[1735319914542,0.88753019,184.1,183.92,1.7021]
[1735319914743,4.38751387,184.09,183.93,3.5]
[1735319914943,2.7224,183.95,183.93,3.5]
[1735319915942,2.7224,183.95,183.94,3.5]
[1735319917349,2.7221,183.97,183.94,3.5]
[1735319917743,5.4405,184.09,183.94,3.5]
[1735319918150,5.4405,184.09,183.94,6.2224]
[1735319918645,5.4405,184.09,183.94,3.5]
[1735319918845,2.7221,183.97,183.94,3.5]
[1735319922748,5.4405,184.09,183.94,3.5]
[1735319922950,2.7226,183.93,183.92,1.7021]
[1735319923153,2.7226,183.93,183.92,5.2021]
[1735319924954,2.7224,183.94,183.92,5.2021]
[1735319925553,5.4408,184.08,183.92,5.2021]
[1735319926150,4.0831657,184.1,183.98,2.7218]
[1735319926352,22.54437273,184.11,183.99,3.5]
[1735319926749,1.672,184.12,183.99,3.5]
[1735319926943,1.672,184.12,184.0,1.6916]
[1735319927855,2.721,184.04,184.0,4.4132]
[1735319928651,1.672,184.12,184.0,1.6916]
[1735319929556,2.721,184.04,184.0,1.6916]
[1735319930852,12.36430235,184.17,184.0,1.6916]
[1735319931351,5.70327875,184.18,184.0,1.6916]
[1735319931557,2.7205,184.08,184.03,2.721]
[1735319931756,5.70327875,184.18,184.04,3.5]
[1735319931958,0.88949855,184.17,184.04,3.5]
[1735319932260,13.99093829,184.18,184.04,3.5]
[1735319932457,0.88962186,184.17,184.04,3.5]
[1735319932956,1.6216,184.18,184.04,3.5]
[1735319933554,5.70327875,184.18,184.04,3.5]
[1735319933757,5.70327875,184.18,184.04,6.2208]
[1735319933961,1.6216,184.18,184.04,3.5]
[1735319934161,1.5334,184.19,184.05,1.6412]
[1735319934362,2.7198,184.13,184.07,2.7205]
[1735319934663,2.7198,184.13,184.08,1.697]
[1735319934855,2.7198,184.12,184.09,3.5]
[1735319935259,1.5334,184.19,184.09,3.5]
[1735319935460,2.7201,184.1,184.09,3.5]
[1735319936865,2.7199,184.11,184.09,3.5]
[1735319937567,1.5334,184.19,184.09,3.5]
[1735319938370,2.7199,184.12,184.09,3.5]
[1735319938665,1.5334,184.19,184.09,3.5]
[1735319939269,2.7201,184.1,184.09,3.5]
[1735319940169,2.7204,184.08,184.07,1.6745]
[1735319940367,1.5334,184.19,184.07,5.1745]
[1735319942173,1.5334,184.19,184.07,1.6745]
[1735319942372,1.5334,184.19,184.08,3.5]
[1735319942868,1.6729,184.18,184.08,3.5]
[1735319943064,2.7202,184.09,184.08,3.5]
[1735319943270,1.6729,184.18,183.97,1.599]
[1735319943478,0.88870941,184.17,183.98,3.5]
[1735319943771,0.88870941,184.17,183.98,6.2218]
[1735319943968,0.88870941,184.17,183.97,3.2265]
[1735319944164,0.88870941,184.17,183.98,3.5]
[1735319944775,4.53487839,184.17,183.98,3.5]
[1735319944974,0.88870941,184.16,183.98,3.5]
[1735319945478,1.5366,184.15,183.98,5.0571]
[1735319945978,2.7211,184.03,183.98,5.0571]
[1735319946977,2.7211,184.03,183.98,7.7789]
[1735319948278,2.7213,184.02,183.98,7.7789]
[1735319948673,1.5366,184.15,183.98,5.0571]
[1735319948978,3.64616898,184.17,183.98,5.0571]
[1735319950277,2.7202,184.09,184.04,2.7208]
[1735319950480,3.64616898,184.17,184.05,8.4547]
[1735319950779,3.64616898,184.17,184.06,3.5]
[1735319950982,2.7198,184.12,184.07,2.7205]
[1735319951177,3.64616898,184.17,184.06,3.5]
[1735319951483,2.7195,184.14,184.06,3.5]
[1735319951680,3.64616898,184.17,184.06,3.5]
[1735319951975,3.64616898,184.17,184.05,3.3201]
[1735319952176,3.64616898,184.17,184.07,3.5]
[1735319952376,1.6036,184.16,184.06,3.5]
[1735319952779,1.597,184.15,184.06,3.5]
[1735319953583,2.7205,184.07,184.06,3.5]
[1735319954177,1.597,184.15,184.06,3.5]
[1735319954774,1.597,184.15,183.95,7.43347465]
[1735319954982,1.6162,184.14,183.96,3.5]
[1735319955679,1.6162,184.14,183.97,1.6622]
[1735319955884,2.7213,184.02,183.97,1.6622]
[1735319956190,1.6162,184.14,183.97,1.6622]
[1735319956581,1.6162,184.14,184.01,2.7214]
[1735319956777,1.597,184.15,184.02,3.5]
[1735319956978,2.7197,184.13,184.04,2.721]
[1735319957178,3.64616898,184.17,184.05,1.5574]
[1735319959195,2.7198,184.13,184.07,2.7205]
[1735319959490,3.64616898,184.17,184.08,5.1773]
[1735319960281,2.7194,184.15,184.08,5.1773]
[1735319960489,3.64616898,184.17,184.08,5.1773]
[1735319961389,2.7198,184.13,184.08,5.1773]
[1735319961593,1.5666,184.2,184.08,7.8976]
[1735319961792,1.6505,184.22,184.08,5.1773]
[1735319962090,24.08187273,184.24,184.08,5.1773]
[1735319962390,22.54437273,184.24,184.08,5.1773]
[1735319962881,2.7186,184.2,184.14,2.7194]
[1735319963085,2.7186,184.2,184.15,6.6543]
[1735319963292,73.24043293,184.28,184.15,6.6543]
[1735319963491,2.7189,184.18,184.15,6.6543]
[1735319963995,73.24043293,184.28,184.15,6.6543]
[1735319964183,50.6960602,184.28,184.16,1.5566]
[1735319964687,2.7185,184.21,184.16,1.5566]
[1735319967993,2.7185,184.21,184.16,4.2758]
[1735319968193,50.6960602,184.28,184.16,1.5566]
[1735319968995,2.7186,184.21,184.16,1.5566]
[1735319969994,2.7186,184.21,184.16,4.2757]
[1735319970395,50.6960602,184.28,184.17,3.48]
[1735319970994,2.7186,184.2,184.17,3.48]
[1735319971199,50.6960602,184.28,184.16,1.5566]
[1735319971500,50.6960602,184.28,184.17,3.48]
[1735319972690,2.7183,184.23,184.17,3.48]
[1735319972894,50.6960602,184.28,184.17,3.48]
[1735319973090,1.6708,184.3,184.17,6.199]
[1735319973902,2.7184,184.22,184.17,3.48]
[1735319974202,1.6708,184.3,184.17,3.48]
[1735319974601,2.7188,184.19,184.17,3.48]
[1735319974798,1.6708,184.3,184.17,3.48]
[1735319974995,1.6708,184.3,184.08,2.04426166]
[1735319975199,2.719,184.17,184.09,8.4045]
[1735319975402,1.6708,184.3,184.09,8.4045]
[1735319975602,2.7187,184.2,184.09,8.4045]
[1735319975802,1.6708,184.3,184.09,8.4045]
[1735319976607,2.7186,184.21,184.15,2.7193]
[1735319976903,1.6708,184.3,184.16,3.48]
[1735319979099,1.6708,184.3,184.17,2.719]
[1735319979297,1.6708,184.3,184.17,4.8473]
[1735319980195,2.7181,184.24,184.18,2.7189]
[1735319980704,1.6708,184.3,184.18,2.7189]
[1735319981502,1.6708,184.3,184.17,3.2319]
[1735319981897,1.6708,184.3,184.17,4.8389]
[1735319982303,2.7183,184.22,184.17,7.5579]
[1735319982703,2.7183,184.22,184.17,4.8389]
[1735319983201,1.6708,184.3,184.18,3.48]
[1735319983399,2.7185,184.21,184.18,3.48]
[1735319984003,1.6708,184.3,184.18,3.48]
[1735319986507,1.6708,184.3,184.19,1.6229]
[1735319987607,2.7178,184.26,184.2,2.7185]
[1735319988105,2.7178,184.26,184.19,1.6229]
[1735319988307,1.6708,184.3,184.19,1.6229]
[1735319988503,2.7179,184.25,184.2,2.7186]
[1735319989003,17.75680436,184.39,184.19,1.6229]
[1735319989209,2.7177,184.26,184.19,1.6229]
[1735319989605,2.7177,184.26,184.21,2.7183]
[1735319990007,2.7177,184.26,184.21,2.7184]
[1735319990701,2.7177,184.26,184.19,1.6229]
[1735319990702,2.7177,184.26,184.22,2.7182]
[1735319991008,2.7177,184.26,184.23,3.5]
[1735319992711,4.9208,184.38,184.23,3.5]
[1735319993112,4.9208,184.38,184.24,1.5459]
[1735319993510,2.7172,184.3,184.25,2.7177]
[1735319995109,4.9208,184.38,184.24,1.5459]
[1735319995311,4.9208,184.38,184.27,2.7175]
[1735319995614,4.9208,184.38,184.28,3.5]
[1735319996614,2.7167,184.33,184.28,6.2173]
[1735320000811,4.9208,184.38,184.26,1.5862]
[1735320001013,4.9208,184.38,184.27,3.5]
[1735320001412,4.9208,184.38,184.23,56.48]
[1735320001917,4.9208,184.38,184.24,3.5]
[1735320001918,0.88945503,184.37,184.24,3.5]
[1735320002521,4.9208,184.38,184.24,3.5]
[1735320003321,17.24942725,184.38,184.24,3.5]
[1735320003918,8.99649778,184.38,184.24,3.5]
[1735320004119,4.9208,184.38,184.24,3.5]
[1735320004423,2.7179,184.25,184.24,3.5]
[1735320004922,2.7175,184.28,184.24,3.5]
[1735320005417,4.9208,184.38,184.24,3.5]
[1735320005723,2.7176,184.27,184.24,3.5]
[1735320006119,2.7177,184.26,184.24,3.5]
[1735320007625,2.7179,184.25,184.24,3.5]
[1735320011022,2.7177,184.27,184.24,3.5]
[1735320011318,4.9208,184.38,184.24,3.5]
[1735320011721,4.9208,184.38,184.26,2.7177]
[1735320012827,3.283,184.38,184.26,2.7177]
[1735320013319,3.283,184.38,184.25,1.5577]
[1735320013527,3.283,184.38,184.28,2.7174]
[1735320013719,3.283,184.38,184.29,3.5]
[1735320013915,2.7168,184.33,184.29,3.5]
[1735320014123,3.283,184.38,184.29,3.5]
[1735320014422,1.6864,184.38,184.29,3.5]
[1735320014726,1.6627,184.41,184.29,3.5]
[1735320015317,2.7167,184.33,184.29,3.5]
[1735320015627,1.6627,184.41,184.29,3.5]
[1735320016320,2.7173,184.29,184.24,2.7179]
[1735320016529,2.7173,184.29,184.25,3.5]
[1735320017424,1.6627,184.41,184.25,3.5]
[1735320017627,0.88928705,184.4,184.25,3.5]
[1735320018829,0.88928705,184.4,184.23,56.48]
[1735320019026,0.88928705,184.4,184.24,3.5]
[1735320019225,2.7179,184.25,184.24,3.5]
[1735320020327,2.7183,184.23,184.19,1.56598772]
[1735320020627,1.5967,184.35,184.2,3.5]
[1735320020827,0.88962295,184.34,184.2,3.5]
[1735320021230,1.6492,184.33,184.2,3.5]
[1735320021429,0.88966947,184.32,184.2,3.5]
[1735320021931,1.6584,184.31,184.2,3.5]
[1735320022427,2.7185,184.21,184.2,3.5]
[1735320022831,1.6584,184.31,184.2,3.5]
[1735320023124,1.6492,184.33,184.2,3.5]
[1735320023331,1.6492,184.33,184.21,1.6296]
[1735320023627,2.7179,184.26,184.21,1.6296]
[1735320023825,1.6492,184.33,184.21,1.6296]
[1735320024226,1.6492,184.33,184.16,1.6906]
[1735320024429,1.6492,184.33,184.17,3.5]
[1735320025227,2.7186,184.2,184.17,3.5]
[1735320030129,1.6492,184.33,184.17,3.5]
[1735320031229,2.7181,184.24,184.19,2.7187]
[1735320032329,1.6492,184.33,184.18,2.7189]
[1735320032835,2.7183,184.23,184.18,2.7189]
[1735320033032,1.6492,184.33,184.18,2.7189]
[1735320033530,2.7183,184.22,184.18,2.7189]
[1735320033930,2.7181,184.24,184.19,2.7187]
[1735320035130,2.7172,184.3,184.21,2.7183]
[1735320035430,1.5967,184.35,184.22,3.5]
[1735320035634,1.5967,184.35,184.23,3.5]
[1735320035937,1.5967,184.35,184.24,3.5]
[1735320036232,1.5967,184.35,184.25,3.5]
[1735320038536,2.7173,184.29,184.25,3.5]
[1735320039331,1.6768,184.37,184.25,3.5]
[1735320039537,2.7169,184.32,184.25,3.5]
[1735320039736,1.6768,184.37,184.25,3.5]
[1735320040338,2.717,184.31,184.25,6.2179]
[1735320040540,1.6768,184.37,184.25,3.5]
[1735320041338,2.717,184.31,184.25,6.2178]
[1735320041536,3.0869,184.39,184.26,1.6645]
[1735320041741,3.0869,184.39,184.26,4.8874]
[1735320041930,3.0869,184.39,184.28,2.7174]
[1735320041931,2.7167,184.34,184.28,2.7174]
[1735320042546,2.7168,184.33,184.28,2.7174]
[1735320043137,2.7172,184.3,184.26,4.8874]
[1735320043735,1.5336,184.41,184.26,7.6051]
[1735320045144,1.5336,184.41,184.27,3.5]
[1735320045446,2.7167,184.33,184.28,2.7174]
[1735320045636,2.7167,184.33,184.27,3.5]
[1735320045637,1.5336,184.41,184.27,3.5]
[1735320045940,4.77717412,184.42,184.27,3.5]
[1735320046540,2.7158,184.39,184.33,2.7165]
[1735320046743,2.7158,184.39,184.27,3.5]
[1735320046744,2.7158,184.39,184.34,6.7025]
[1735320047044,2.7158,184.39,184.35,3.5]
[1735320048342,3.12067412,184.42,184.35,3.5]
[1735320048748,3.12067412,184.42,184.36,3.48]
[1735320049547,3.12067412,184.42,184.34,3.2025]
[1735320049748,2.7161,184.37,184.35,3.48]
[1735320051445,3.12067412,184.42,184.35,3.48]
[1735320052651,1.5706,184.49,184.35,6.1963]
[1735320052652,2.7158,184.4,184.35,6.1963]
[1735320052940,1.5706,184.49,184.35,3.48]
[1735320053140,2.7158,184.39,184.35,3.48]
[1735320053440,1.5706,184.49,184.35,3.48]
[1735320053838,2.7158,184.4,184.35,3.48]
[1735320054039,1.5706,184.49,184.35,3.48]
[1735320054243,0.88888921,184.48,184.34,3.2025]
[1735320054447,0.88888921,184.48,184.35,3.48]
[1735320055152,0.88888921,184.48,184.29,3.1561]
[1735320055353,0.88888921,184.48,184.3,3.48]
[1735320055754,2.7153,184.43,184.3,3.48]
[1735320056053,1.6783,184.42,184.3,3.48]
[1735320056447,2.7162,184.37,184.3,3.48]
[1735320057055,2.7162,184.37,184.32,2.7168]
[1735320058062,1.6783,184.42,184.3,3.48]
[1735320058264,2.716,184.38,184.33,2.7167]
[1735320058459,14.02940203,184.51,184.3,3.48]
[1735320058664,2.7153,184.43,184.37,2.716]
[1735320058867,1.6651,184.5,184.38,3.48]
[1735320060358,2.7147,184.47,184.39,3.48]
[1735320060565,1.6651,184.5,184.29,3.1561]
[1735320060566,5.1451,184.5,184.29,3.1561]
[1735320060761,0.88886641,184.49,184.3,6.1971]
[1735320061266,0.88886641,184.49,184.3,3.48]
[1735320061467,0.88886641,184.49,184.32,2.7168]
[1735320061667,2.7161,184.38,184.32,2.7168]
[1735320062360,2.7164,184.35,184.3,6.197]
[1735320062569,5.1451,184.5,184.3,3.48]
[1735320062763,2.7165,184.35,184.3,3.48]
[1735320062969,5.4288,184.49,184.31,3.48]
[1735320063166,0.88895398,184.48,184.31,3.48]
[1735320063767,2.7152,184.43,184.31,3.48]
[1735320064072,5.4288,184.49,184.31,3.48]
[1735320064272,0.88890667,184.48,184.31,3.48]
[1735320065171,2.7152,184.43,184.31,3.48]
[1735320065371,5.4288,184.49,184.31,3.48]
[1735320065671,0.88893428,184.48,184.31,3.48]
[1735320065870,0.88893428,184.48,184.29,3.1561]
[1735320066068,0.88893428,184.48,184.3,3.48]
[1735320066369,0.88893428,184.47,184.3,3.48]
[1735320066576,6.31853428,184.46,184.3,3.48]
[1735320066777,2.45523428,184.45,184.3,3.48]
[1735320067074,1.5663,184.45,184.3,3.48]
[1735320068571,2.7165,184.35,184.3,3.48]
[1735320069979,2.7166,184.34,184.3,3.48]
[1735320070479,2.7166,184.34,184.29,3.1561]
[1735320070683,2.7166,184.34,184.3,3.48]
[1735320070876,1.6262,184.44,184.3,3.48]
[1735320071177,1.6506,184.43,184.3,3.48]
[1735320072282,2.7167,184.34,184.3,3.48]
[1735320072777,2.7163,184.36,184.3,3.48]
[1735320073481,2.7163,184.36,184.31,2.7168]
[1735320074085,1.6506,184.43,184.29,3.1561]
[1735320074278,1.6506,184.43,184.3,3.48]
[1735320074678,2.7171,184.31,184.3,3.48]
[1735320075779,1.6506,184.43,184.3,3.48]
[1735320076579,14.00168953,184.43,184.3,3.48]
[1735320077089,2.717,184.31,184.3,3.48]
[1735320077277,36.5509324,184.43,184.3,3.48]
[1735320077479,24.19497273,184.43,184.3,3.48]
[1735320077680,2.7164,184.36,184.3,6.197]
[1735320078582,1.6506,184.43,184.3,3.48]
[1735320078789,1.5663,184.45,184.3,3.48]
[1735320080495,1.5663,184.45,184.31,2.717]
[1735320081390,2.7158,184.39,184.34,2.7165]
[1735320081697,2.7158,184.39,184.35,3.5]
[1735320082192,2.7162,184.36,184.35,3.5]
[1735320083190,1.5663,184.45,184.35,3.5]
[1735320083392,2.7162,184.36,184.35,3.5]
[1735320085099,2.7161,184.37,184.35,3.5]
[1735320085594,1.5663,184.45,184.35,3.5]
[1735320087998,1.5663,184.45,184.36,3.5]
[1735320088199,2.7161,184.37,184.36,3.5]
[1735320088596,1.5663,184.45,184.29,3.1561]
[1735320088802,2.7171,184.3,184.29,3.1561]
[1735320088999,2.7171,184.3,184.29,6.6561]
[1735320089199,2.7173,184.29,184.28,56.48]
[1735320089395,2.7173,184.29,184.28,59.98]
[1735320090006,2.7171,184.31,184.28,59.98]
[1735320090193,3.1199,184.41,184.28,59.98]
[1735320090698,3.1199,184.41,184.29,1.6166]
[1735320090893,3.1199,184.41,184.3,1.6575]
[1735320091202,2.7162,184.37,184.32,2.7168]
[1735320091404,1.5357,184.41,184.3,1.6575]
[1735320092003,1.5357,184.41,184.31,2.717]
[1735320092205,1.5357,184.41,184.32,3.5]
[1735320094006,2.7161,184.37,184.32,3.5]
[1735320094208,1.5357,184.41,184.32,3.5]
[1735320096309,2.7166,184.36,184.32,3.5]
[1735320096509,1.5357,184.41,184.32,3.5]
[1735320096701,2.7167,184.35,184.33,3.5]
[1735320097511,1.5357,184.41,184.33,3.5]
[1735320097512,2.7165,184.36,184.33,3.5]
[1735320098910,1.5357,184.41,184.33,3.5]
[1735320099110,1.77331947,184.42,184.33,3.5]
[1735320099519,2.7162,184.39,184.33,6.2169]
[1735320099710,1.77331947,184.42,184.33,3.5]
[1735320102313,2.7163,184.38,184.33,3.5]
[1735320102514,1.77331947,184.42,184.33,3.5]
[1735320103511,2.7161,184.39,184.34,2.7168]
[1735320105917,1.77331947,184.42,184.33,3.5]
[1735320106612,2.7159,184.41,184.35,2.7166]
[1735320106818,1.77331947,184.42,184.33,3.5]
[1735320107012,2.7159,184.4,184.34,2.7167]
[1735320107418,1.77331947,184.42,184.34,2.7167]
[1735320107920,2.7161,184.39,184.34,2.7167]
[1735320108218,1.77331947,184.42,184.33,3.5]
[1735320109911,2.7162,184.39,184.34,2.7168]
[1735320110115,1.77331947,184.42,184.33,3.5]
[1735320111424,2.7161,184.39,184.35,2.7165]
[1735320111619,1.567,184.47,184.33,3.5]
[1735320111814,22.54437273,184.49,184.33,3.5]
[1735320112018,2.715,184.46,184.41,2.7158]
[1735320112219,2.715,184.46,184.42,3.48]
[1735320112424,24.15407273,184.53,184.42,3.48]
[1735320112625,36.52467561,184.53,184.42,3.48]
[1735320112823,12.37058141,184.52,184.42,3.48]
[1735320113721,2.7155,184.44,184.42,3.48]
[1735320113925,13.98028141,184.53,184.42,3.48]
[1735320114532,36.52465414,184.53,184.42,3.48]
[1735320114725,2.7155,184.43,184.42,3.48]
[1735320114919,12.37058141,184.52,184.42,3.48]
[1735320115531,2.7145,184.5,184.42,3.48]
[1735320115722,24.15407273,184.53,184.42,3.48]
[1735320115921,36.52008445,184.53,184.42,3.48]
[1735320116122,24.15407273,184.53,184.42,3.48]
[1735320116429,13.97417619,184.53,184.42,3.48]
[1735320117128,2.715,184.46,184.42,3.48]
[1735320118331,1.6097,184.53,184.42,3.48]
[1735320118536,2.7149,184.48,184.42,6.1956]
[1735320118728,2.7149,184.48,184.42,3.48]
[1735320119232,2.7149,184.48,184.42,6.1956]
[1735320120535,1.6097,184.53,184.44,2.7153]
[1735320120734,1.6097,184.53,184.33,7.43347465]
[1735320120930,1.6097,184.53,184.35,7.43347465]
[1735320121127,0.88859201,184.52,184.35,7.43347465]
[1735320121528,2.7161,184.4,184.35,7.43347465]
[1735320121927,2.7161,184.4,184.34,3.48]
[1735320123036,2.7161,184.4,184.34,6.1967]
[1735320123632,2.7161,184.4,184.34,2.7167]
[1735320123932,2.7161,184.4,184.35,3.48]
[1735320124932,12.36059087,184.52,184.35,3.48]
[1735320125137,0.88880008,184.51,184.35,3.48]
[1735320125542,2.7163,184.38,184.36,3.48]
[1735320125837,12.36059087,184.52,184.37,3.48]
[1735320126137,0.8888447,184.51,184.37,3.48]
[1735320126338,2.7161,184.39,184.37,3.48]
[1735320126543,34.99548521,184.51,184.37,3.48]
[1735320126837,2.716,184.4,184.37,3.48]
[1735320127139,12.36059087,184.5,184.37,3.48]
[1735320127338,0.88883436,184.49,184.37,3.48]
[1735320127538,2.7162,184.38,184.37,3.48]
[1735320129437,2.7162,184.38,184.3,1.6575]
[1735320129641,2.7164,184.37,184.32,2.7171]
[1735320131345,3.1417,184.48,184.3,4.3748]
[1735320131543,0.88895749,184.47,184.31,3.48]
[1735320132042,1.5409,184.46,184.31,3.48]
[1735320132640,36.54752539,184.46,184.31,3.48]
[1735320133343,36.54752539,184.46,184.33,2.7168]
[1735320133344,2.7163,184.38,184.33,2.7168]
[1735320133544,36.54752539,184.46,184.31,3.48]
[1735320133545,1.5409,184.46,184.31,3.48]
[1735320134040,2.7168,184.35,184.31,3.48]
[1735320135143,2.7168,184.35,184.31,6.1972]
[1735320135550,2.7167,184.35,184.31,3.48]
[1735320135948,3.48,184.45,184.25,7.43347465]
[1735320136138,2.7175,184.3,184.26,3.48]
[1735320136539,7.55468461,184.45,184.26,6.1979]
[1735320136842,2.7173,184.31,184.26,6.1979]
[1735320137042,7.55468461,184.45,184.27,2.7177]
[1735320137237,35.89257949,184.44,184.27,2.7177]
[1735320137446,13.25675443,184.43,184.27,2.7177]
[1735320137647,12.3675868,184.43,184.27,2.7177]
[1735320137846,12.3675868,184.43,184.26,6.198]
[1735320138150,0.88916263,184.42,184.26,6.198]
[1735320138341,2.7174,184.31,184.23,1.6646]
[1735320138537,2.7174,184.31,184.25,2.718]
[1735320138740,2.7174,184.31,184.24,3.5]
[1735320139146,2.7174,184.31,184.26,2.718]
[1735320141449,3.1203,184.41,184.26,2.718]
[1735320141646,3.1203,184.41,184.24,3.5]
[1735320141647,3.1203,184.41,184.25,2.7181]
[1735320142041,3.1203,184.41,184.24,3.5]
[1735320142244,2.7173,184.31,184.26,2.7179]
[1735320143344,2.7175,184.3,184.27,3.5]
[1735320143548,4.89368288,184.41,184.27,3.5]
[1735320143852,0.889289,184.4,184.27,3.5]
[1735320144149,2.7172,184.31,184.27,3.5]
[1735320145151,4.89368288,184.41,184.27,3.5]
[1735320145548,4.89368288,184.41,184.28,1.6348]
[1735320145741,2.7166,184.36,184.31,2.7172]
[1735320146050,1.77338288,184.41,184.32,3.5]
[1735320146445,2.7162,184.39,184.34,2.7167]
[1735320149646,1.77338288,184.41,184.32,3.5]
[1735320149849,2.7158,184.41,184.36,2.7165]
[1735320150053,2.7158,184.41,184.37,3.5]
[1735320150450,3.1067,184.46,184.37,3.5]
[1735320150953,3.1067,184.46,184.31,3.5]
[1735320151251,0.88907758,184.45,184.31,3.5]
[1735320151753,2.7168,184.34,184.31,3.5]
[1735320153147,3.1067,184.46,184.31,3.5]
[1735320153347,2.7166,184.36,184.31,3.5]
[1735320154556,2.7166,184.36,184.31,6.2172]
[1735320155053,3.1067,184.46,184.31,3.5]
[1735320155550,3.1067,184.46,184.32,4.8598]
[1735320155753,3.1067,184.46,184.34,2.7166]
[1735320156350,3.1067,184.46,184.32,4.8598]
[1735320156553,3.1067,184.46,184.32,3.2759]
[1735320156856,3.1067,184.46,184.32,1.6704]
[1735320157257,2.7166,184.36,184.32,1.6704]
[1735320157657,3.1067,184.46,184.32,1.6704]
[1735320158062,2.7159,184.41,184.35,2.7166]
[1735320158352,2.7159,184.41,184.36,3.5]
[1735320158557,2.7156,184.43,184.36,3.5]
[1735320160060,3.1067,184.46,184.36,3.5]